bitfinex-derivatives/quotes_SOLF0:USTF0_20250924
["timestamp","ask_amount","ask_price","bid_price","bid_amount"]
[1758756931975,7.44,211.53,211.49,123.07]
[1758756932175,4.2526,211.54,211.49,7.61]
[1758756932375,7.44,211.52,211.49,7.61]
[1758756933186,7.44,211.57,211.49,7.61]
[1758756933377,3.37365408,211.56,211.49,7.61]
[1758756933573,3.37365408,211.55,211.49,7.61]
[1758756933774,3.37365408,211.54,211.52,7.61]
[1758756934081,11.692,211.57,211.52,7.61]
[1758756934279,3.37327434,211.56,211.51,4.2529]
[1758756934486,3.37327434,211.55,211.52,7.61]
[1758756934780,7.44,211.57,211.52,7.61]
[1758756934976,7.44,211.57,211.51,4.2529]
[1758756934977,3.37253611,211.56,211.51,4.2529]
[1758756935178,3.37253611,211.55,211.51,4.2529]
[1758756935384,7.44,211.57,211.52,4.2527]
[1758756935581,3.37185557,211.56,211.52,4.2527]
[1758756935775,3.37185557,211.55,211.52,4.2527]
[1758756935974,3.37185557,211.55,211.48,115.46]
[1758756935975,122.74780385,211.6,211.53,11.8625]
[1758756936282,3.37161687,211.59,211.53,11.8625]
[1758756936483,7.44,211.57,211.54,7.61]
[1758756937176,10.81073998,211.56,211.44,7.61]
[1758756937477,3.37071866,211.55,211.46,7.61]
[1758756937786,3.37071866,211.54,211.46,7.61]
[1758756937980,4.2517,211.58,211.49,7.61]
[1758756938184,3.37013341,211.57,211.49,7.61]
[1758756938386,4.2517,211.58,211.49,7.61]
[1758756938588,3.36936944,211.57,211.49,9.34031172]
[1758756938789,5.98201172,211.58,211.49,9.34031172]
[1758756938989,3.36936993,211.57,211.49,9.34031172]
[1758756939188,5.98201172,211.58,211.51,4.2529]
[1758756939483,3.36869551,211.57,211.51,119.8129]
[1758756939678,5.98201172,211.58,211.51,119.8129]
[1758756939879,3.36869551,211.57,211.51,119.8129]
[1758756940077,5.98201172,211.58,211.51,119.8129]
[1758756940280,3.36869551,211.57,211.51,119.8129]
[1758756940483,5.98201172,211.58,211.51,119.8129]
[1758756940785,7.62010147,211.57,211.51,119.8129]
[1758756940981,4.252,211.57,211.51,127.4229]
[1758756950897,1.73031172,211.58,211.52,4.2527]
[1758756951795,9.17031172,211.58,211.52,4.2527]
[1758756952195,9.17031172,211.58,211.52,11.8627]
[1758756952996,13.42201172,211.58,211.52,11.8627]
[1758756954298,3.36634753,211.57,211.52,4.2527]
[1758756954501,13.42201172,211.58,211.52,4.2527]
[1758756954700,3.3663485,211.57,211.52,4.2527]
[1758756955000,13.42201172,211.58,211.52,4.2527]
[1758756955201,11.10634794,211.57,211.53,7.56]
[1758756955402,7.74,211.57,211.52,4.2527]
[1758756955698,7.74,211.57,211.53,7.56]
[1758756955903,7.74,211.57,211.52,4.2527]
[1758756956397,7.74,211.57,211.53,7.56]
[1758756956601,7.74,211.57,211.52,4.2527]
[1758756956791,7.74,211.57,211.53,7.56]
[1758756956995,7.74,211.57,211.52,4.2527]
[1758756957398,7.74,211.57,211.53,7.56]
[1758756958003,7.74,211.57,211.52,4.2527]
[1758756958402,7.74,211.57,211.53,7.56]
[1758756958597,7.74,211.57,211.52,4.2527]
[1758756959406,7.74,211.57,211.53,7.56]
[1758756959906,7.74,211.57,211.52,4.2527]
[1758756960303,3.36992093,211.56,211.53,7.56]
[1758756960499,7.74,211.57,211.53,7.3]
[1758756960704,3.36992093,211.56,211.53,7.3]
[1758756960898,7.74,211.57,211.53,7.3]
[1758756961104,7.65,211.55,211.51,122.86]
[1758756961307,7.65,211.53,211.46,7.3]
[1758756961603,1.73031172,211.52,211.47,115.3]
[1758756961805,7.65,211.51,211.47,122.6]
[1758756962507,7.65,211.51,211.47,115.3]
[1758756962703,7.65,211.51,211.48,7.3]
[1758756963107,7.65,211.51,211.47,115.3]
[1758756963306,7.65,211.51,211.48,7.3]
[1758756964912,5.98331172,211.52,211.48,7.3]
[1758756965511,13.63331172,211.52,211.48,7.3]
[1758756966511,11.903,211.52,211.48,7.3]
[1758756967307,11.903,211.52,211.47,115.3]
[1758756967507,11.903,211.52,211.48,7.3]
[1758756969115,11.903,211.52,211.47,115.3]
[1758756969507,3.37893485,211.51,211.47,115.3]
[1758756969707,11.903,211.52,211.48,7.3]
[1758756969907,3.37893485,211.51,211.48,7.3]
[1758756970116,11.903,211.52,211.48,7.3]
[1758756970314,3.37893485,211.51,211.48,7.3]
[1758756970607,11.903,211.52,211.48,7.3]
[1758756970810,3.37980154,211.51,211.48,7.3]
[1758756971003,11.903,211.52,211.48,7.3]
[1758756971203,3.37980154,211.51,211.48,7.3]
[1758756971404,7.65,211.51,211.48,7.3]
[1758756972216,3.38200418,211.5,211.48,7.3]
[1758756972413,7.65,211.51,211.48,7.3]
[1758756972611,3.38191504,211.5,211.48,7.3]
[1758756972915,7.65,211.51,211.48,7.3]
[1758756973104,3.38191504,211.5,211.48,7.3]
[1758756973308,7.65,211.51,211.48,7.3]
[1758756973503,3.38289394,211.5,211.48,7.3]
[1758756973712,7.65,211.51,211.48,7.3]
[1758756973910,3.38289394,211.5,211.48,7.3]
[1758756974214,7.65,211.51,211.48,122.6]
[1758756974415,3.38291316,211.5,211.48,122.6]
[1758756974716,7.65,211.51,211.48,122.6]
[1758756975015,3.38291316,211.5,211.48,122.6]
[1758756975212,7.65,211.51,211.49,7.3]
[1758756975409,3.38275405,211.5,211.49,7.3]
[1758756982820,7.65,211.56,211.49,9.03031172]
[1758756983017,3.38152767,211.55,211.49,9.03031172]
[1758756983214,3.38152767,211.54,211.49,9.03031172]
[1758756983518,3.38152767,211.53,211.49,9.03031172]
[1758756983713,3.38152767,211.52,211.49,9.03031172]
[1758756983916,9.38031172,211.59,211.49,9.03031172]
[1758756984118,3.3821154,211.58,211.49,9.03031172]
[1758756984321,8.02,211.55,211.52,8.02]
[1758756984517,3.3821154,211.54,211.53,115.3]
[1758756984719,11.4021154,211.54,211.53,115.3]
[1758756987726,8.02,211.53,211.5,115.3]
[1758756988023,11.4021154,211.52,211.5,115.3]
[1758756988220,3.3821154,211.51,211.5,115.3]
[1758756988923,3.3821154,211.51,211.5,123.32]
[1758756989420,9.75031172,211.55,211.51,8.02]
[1758756989624,3.38208291,211.54,211.51,8.02]
[1758756989824,3.38208291,211.53,211.51,8.02]
[1758756990021,3.38208291,211.52,211.51,8.02]
[1758756991727,3.38208291,211.52,211.51,123.32]
[1758756995225,1.73031172,211.58,211.51,123.32]
[1758756995526,1.73031172,211.58,211.52,8.02]
[1758756995527,3.38292793,211.57,211.52,8.02]
[1758756995727,3.38292793,211.56,211.51,115.3]
[1758756995924,3.38292793,211.55,211.54,8.02]
[1758756996125,3.38292793,211.55,211.54,123.3]
[1758756997226,3.38292793,211.55,211.54,115.28]
[1758756997632,3.38292793,211.55,211.49,4.2533]
[1758756997832,3.38292793,211.54,211.5,100.64]
[1758756998031,3.38292793,211.53,211.51,8.02]
[1758756998232,14.00241172,211.56,211.51,8.02]
[1758756998429,3.38287182,211.55,211.51,8.02]
[1758756998626,3.38287182,211.54,211.5,100.64]
[1758756998831,3.38287182,211.53,211.5,104.8931]
[1758756999031,4.2521,211.56,211.51,8.02]
[1758756999327,3.38287182,211.55,211.5,104.8931]
[1758756999526,3.38287182,211.54,211.51,8.02]
[1758756999732,4.2521,211.56,211.5,104.8931]
[1758756999934,3.38264308,211.55,211.51,8.02]
[1758757000132,3.38264308,211.54,211.5,104.8931]
[1758757000436,3.38264308,211.53,211.51,8.02]
[1758757000635,4.2521,211.56,211.5,104.8931]
[1758757000831,3.3828499,211.55,211.51,8.02]
[1758757001037,3.3828499,211.54,211.51,8.02]
[1758757001234,3.3828499,211.53,211.5,104.8931]
[1758757001527,4.2521,211.56,211.51,8.02]
[1758757001732,3.38288373,211.55,211.51,8.02]
[1758757002032,11.40288373,211.54,211.51,8.02]
[1758757002227,3.38288373,211.53,211.51,8.02]
[1758757002434,3.38319497,211.52,211.51,123.3]
[1758757002826,3.38319497,211.52,211.51,115.28]
[1758757005233,11.40319497,211.52,211.51,115.28]
[1758757006627,3.38319497,211.52,211.51,115.28]
[1758757008538,3.38319497,211.52,211.51,123.3]
[1758757016744,6.517e-05,211.6,211.52,7.96]
[1758757016945,62.84111627,213.46,211.68,7.96]
[1758757016946,7.92264776,211.77,211.68,7.96]
[1758757017143,7.81,211.78,211.7,7.96]
[1758757017344,7.81,211.78,211.71,31.9591637]
[1758757017548,66.0605,211.83,211.72,8.8191637]
[1758757017549,7.81,211.75,211.72,8.8191637]
[1758757017852,7.81,211.76,211.73,8.8191637]
[1758757018046,4.2482,211.75,211.74,8.8191637]
[1758757018253,7.81,211.75,211.74,4.2536401]
[1758757018446,5.44877094,211.75,211.74,4.2536401]
[1758757019146,5.44877094,211.75,211.72,24.5]
[1758757021855,66.0721,211.79,211.73,7.48]
[1758757021856,11.8675,211.79,211.73,7.48]
[1758757022054,0.82212169,211.82,211.73,7.48]
[1758757022253,7.62,211.83,211.73,7.48]
[1758757022554,7.62,211.83,211.74,2.70387217]
[1758757022958,4.247,211.82,211.74,2.70387217]
[1758757024063,7.62,211.83,211.75,7.48]
[1758757024459,4.2463,211.85,211.75,7.48]
[1758757025462,4.2467,211.83,211.75,7.48]
[1758757025761,7.62,211.82,211.75,33.32]
[1758757027963,7.62,211.79,211.7,7.48]
[1758757028360,11.8675,211.79,211.7,7.48]
[1758757028564,7.62,211.79,211.7,7.48]
[1758757029170,7.62,211.77,211.7,7.48]
[1758757030261,66.0748,211.78,211.7,7.48]
[1758757030262,4.2482,211.75,211.7,7.48]
[1758757030466,7.62,211.74,211.7,7.48]
[1758757031260,4.2478,211.78,211.68,7.48]
[1758757031468,4.2478,211.78,211.69,7.48]
[1758757031963,4.248,211.77,211.69,7.48]
[1758757032563,7.62,211.79,211.69,7.48]
[1758757034369,4.2478,211.78,211.69,7.48]
[1758757034968,4.2478,211.78,211.7,7.48]
[1758757036768,4.248,211.76,211.7,7.48]
[1758757036970,11.868,211.76,211.7,7.48]
[1758757039672,2.70387217,211.86,211.72,7.48]
[1758757039673,7.62,211.85,211.72,7.48]
[1758757039871,7.62,211.85,211.71,2.70387217]
[1758757039872,7.62,211.85,211.75,7.48]
[1758757040064,11.8663,211.85,211.76,7.48]
[1758757040468,7.62,211.89,211.78,7.48]
[1758757040666,4.2459,211.87,211.79,7.48]
[1758757040869,7.62,211.89,211.8,2.70387217]
[1758757041073,11.8654,211.89,211.81,7.48]
[1758757042473,11.8654,211.89,211.82,4.2468]
[1758757044768,11.8654,211.89,211.81,7.48]
[1758757044769,7.62,211.89,211.81,7.48]
[1758757044969,7.62,211.89,211.78,2.70387217]
[1758757044970,7.71,211.9,211.78,99.94387217]
[1758757045169,68.73967217,211.91,211.78,99.94387217]
[1758757045474,4.246,211.87,211.78,104.19137217]
[1758757045673,4.246,211.87,211.79,7.49]
[1758757048777,7.71,211.88,211.8,7.49]
[1758757049478,7.71,211.88,211.81,4.2469]
[1758757050278,7.71,211.88,211.82,7.49]
[1758757050979,4.245,211.91,211.83,7.49]
[1758757053178,4.245,211.91,211.84,4.2463]
[1758757057278,4.245,211.91,211.79,66.0698]
[1758757057279,7.71,211.9,211.8,7.49]
[1758757057873,7.71,211.9,211.81,7.49]
[1758757058681,4.2455,211.89,211.82,4.2467]
[1758757058881,7.71,211.9,211.83,7.49]
[1758757059084,2.70387217,211.95,211.83,7.49]
[1758757059085,7.71,211.94,211.83,7.49]
[1758757059883,4.2446,211.93,211.86,7.49]
[1758757060091,7.71,211.94,211.86,7.49]
[1758757060390,4.2439,211.97,211.9,7.49]
[1758757060579,5.96789977,211.97,211.9,7.49]
[1758757060778,1.72399977,211.97,211.9,7.49]
[1758757061686,1.72399977,211.96,211.9,7.49]
[1758757062186,5.96809977,211.96,211.9,7.49]
[1758757062682,7.71,211.98,211.87,65.06]
[1758757062683,1.72399977,211.94,211.87,65.06]
[1758757063284,4.2447,211.93,211.87,65.06]
[1758757063588,4.2447,211.93,211.86,11.7358]
[1758757063787,4.2447,211.93,211.86,128.0158]
[1758757064488,4.2447,211.93,211.86,142.20581273]
[1758757064690,13.67819977,211.95,211.86,25.92581273]
[1758757064993,1.72399977,211.97,211.9,7.49]
[1758757065189,9.43399977,211.99,211.9,7.49]
[1758757065688,7.71,212.04,211.94,7.49]
[1758757065886,5.96679977,212.03,211.95,5.96809977]
[1758757066087,5.96679977,212.03,211.96,7.49]
[1758757066895,4.243,212.02,211.96,7.49]
[1758757067491,9.43399977,212.04,211.96,7.49]
[1758757068194,13.67639977,212.04,211.96,7.49]
[1758757070392,11.9524,212.04,211.97,1.72399977]
[1758757074690,7.61,212.02,211.96,9.21399977]
[1758757079096,7.61,212.02,211.96,13.45789977]
[1758757079795,7.61,212.02,211.88,7.4]
[1758757079991,7.61,212.0,211.92,1.72399977]
[1758757080297,7.61,212.0,211.92,9.12399977]
[1758757080597,7.61,212.0,211.94,1.72399977]
[1758757082500,7.61,212.0,211.93,1.72399977]
[1758757082795,7.91,211.98,211.92,47.06]
[1758757083587,12.1537,211.98,211.92,47.06]
[1758757085193,12.1537,211.98,211.92,51.3047]
[1758757085597,12.1537,211.98,211.92,11.6447]
[1758757087701,12.1537,211.98,211.92,13.36869977]
[1758757090804,12.1537,211.98,211.94,7.5]
[1758757091899,4.2437,211.98,211.93,4.2445]
[1758757092100,7.91,211.97,211.93,4.2445]
[1758757092403,7.91,211.99,211.93,4.2445]
[1758757092796,1.72399977,211.95,211.87,7.5]
[1758757093002,7.91,211.94,211.88,115.76]
[1758757093396,7.91,211.92,211.87,7.5]
[1758757093606,1.72399977,211.93,211.87,123.28]
[1758757093904,7.91,211.92,211.87,115.78]
[1758757094405,9.63399977,211.93,211.87,115.78]
[1758757095203,9.63399977,211.97,211.88,7.5]
[1758757095400,1.72399977,212.0,211.92,7.5]
[1758757095604,5.96769977,211.98,211.93,34.86]
[1758757095806,9.63399977,211.99,211.92,34.86]
[1758757096000,9.63399977,211.99,211.92,72.26]
[1758757096601,1.72399977,212.02,211.93,1.72399977]
[1758757096807,7.91,211.99,211.92,7.5]
[1758757096997,7.91,211.99,211.92,52.06]
[1758757096998,1.72399977,211.98,211.92,52.06]
[1758757097801,5.96769977,211.98,211.92,52.06]
[1758757098701,5.96769977,211.98,211.92,7.5]
[1758757099000,4.2439,211.97,211.92,7.5]
[1758757099201,1.72399977,211.96,211.91,115.94]
[1758757099407,7.91,211.95,211.91,115.94]
[1758757099805,7.91,211.95,211.91,123.44]
[1758757100502,7.91,211.95,211.91,115.94]
[1758757100711,7.91,211.95,211.89,115.94]
[1758757101006,7.91,211.92,211.89,115.94]
[1758757101206,1.72399977,211.95,211.9,7.5]
[1758757101402,4.2439,211.97,211.9,7.5]
[1758757101403,5.96789977,211.97,211.9,7.5]
[1758757102307,13.87739977,211.99,211.9,7.5]
[1758757102502,13.87739977,211.99,211.92,7.5]
[1758757103405,1.72399977,212.0,211.92,7.5]
[1758757104112,4.2431,212.01,211.92,7.5]
[1758757104313,1.72399977,212.0,211.92,7.5]
[1758757104511,9.33399977,211.98,211.91,4.2448]
[1758757104712,7.61,211.95,211.91,120.1648]
[1758757104918,7.61,211.95,211.91,115.92]
[1758757106213,7.61,211.95,211.91,123.28]
[1758757107113,7.61,211.95,211.91,7.36]
[1758757107313,7.61,211.95,211.91,123.22]
[1758757107810,11.8542,211.95,211.91,123.22]
[1758757108515,7.61,211.94,211.9,115.86]
[1758757109216,7.61,211.94,211.9,123.22]
[1758757109514,9.33399977,211.96,211.86,15.9140125]
[1758757109718,9.33399977,211.96,211.88,9.08399977]
[1758757110013,1.72399977,211.96,211.89,115.82]
[1758757110210,1.72399977,211.96,211.9,7.36]
[1758757110615,13.57809977,211.96,211.91,123.16]
[1758757110816,11.8541,211.96,211.91,115.8]
[1758757111012,4.2441,211.96,211.91,115.8]
[1758757111318,4.2441,211.96,211.92,7.36]
[1758757111715,5.96769977,211.98,211.91,123.16]
[1758757111917,5.96769977,211.98,211.91,127.4048]
[1758757113207,4.2439,211.97,211.91,127.4048]
[1758757114113,1.72399977,211.98,211.89,1.72399977]
[1758757114315,66.0011,212.02,211.89,51.72]
[1758757114316,1.72399977,211.95,211.89,51.72]
[1758757114818,9.33399977,211.95,211.9,7.36]
[1758757115019,7.61,211.94,211.9,7.36]
[1758757115214,9.33399977,211.95,211.89,51.72]
[1758757116219,4.2445,211.94,211.89,51.72]
[1758757116415,1.72399977,211.95,211.89,59.08]
[1758757116615,7.61,211.92,211.89,59.08]
[1758757116822,7.61,211.92,211.89,51.72]
[1758757117022,1.72399977,211.93,211.9,7.36]
[1758757119224,5.96869977,211.93,211.9,7.36]
[1758757119522,1.72399977,211.93,211.9,7.36]
[1758757120626,5.96879977,211.93,211.9,7.36]
[1758757122527,4.2448,211.93,211.9,7.36]
[1758757123229,11.8544,211.95,211.89,59.08]
[1758757123426,7.61,211.95,211.89,59.08]
[1758757124229,4.2446,211.94,211.89,51.72]
[1758757124424,11.8546,211.94,211.9,7.36]
[1758757126124,11.8546,211.94,211.89,51.72]
[1758757126336,11.8549,211.92,211.89,51.72]
[1758757126626,7.61,211.92,211.89,51.72]
[1758757127224,4.2451,211.91,211.88,115.64]
[1758757127528,4.2451,211.91,211.88,123.0]
[1758757128329,4.2447,211.93,211.89,7.36]
[1758757128730,2.6943093,211.94,211.89,7.36]
[1758757128926,7.61,211.92,211.88,115.64]
[1758757129331,2.6943093,211.94,211.88,115.64]
[1758757129532,7.61,211.93,211.88,115.64]
[1758757129833,4.2452,211.91,211.89,7.36]
[1758757130030,4.2452,211.91,211.86,4.2459]
[1758757130227,4.2452,211.91,211.87,115.58]
[1758757130421,10.3043093,211.94,211.88,7.36]
[1758757130625,4.2448,211.93,211.86,4.2459]
[1758757130927,11.8548,211.93,211.89,7.36]
[1758757131127,11.8548,211.93,211.88,115.58]
[1758757131433,11.8548,211.93,211.89,7.36]
[1758757132232,4.2443,211.95,211.89,7.36]
[1758757133228,4.2445,211.94,211.88,127.1655]
[1758757133428,4.2445,211.94,211.89,115.54]
[1758757133634,7.61,211.96,211.9,7.36]
[1758757133835,4.2449,211.92,211.9,7.36]
[1758757141640,11.5549,211.92,211.9,7.36]
[1758757143135,7.31,211.92,211.9,122.76]
[1758757143438,7.31,211.93,211.9,122.76]
[1758757143838,2.6943093,211.97,211.9,122.76]
[1758757144039,7.31,211.96,211.9,7.36]
[1758757144245,7.31,211.96,211.9,55.52]
[1758757146346,4.2449,211.92,211.9,55.52]
[1758757146646,4.2449,211.92,211.9,7.36]
[1758757149748,4.2449,211.92,211.88,57.56]
[1758757149950,11.5545,211.94,211.89,7.87]
[1758757150146,11.5545,211.94,211.88,117.7255]
[1758757150345,4.2445,211.94,211.88,117.7255]
[1758757150546,4.2445,211.94,211.88,12.1155]
[1758757150748,11.5547,211.93,211.89,7.87]
[1758757151649,11.5547,211.93,211.88,119.6255]
[1758757152050,11.5547,211.93,211.89,7.87]
[1758757152447,11.5547,211.93,211.88,119.6255]
[1758757153048,11.5547,211.93,211.89,7.87]
[1758757153244,11.5547,211.93,211.88,119.6255]
[1758757153450,11.5547,211.93,211.89,7.87]
[1758757154151,4.2449,211.92,211.88,115.38]
[1758757154952,4.2449,211.92,211.89,7.87]
[1758757155351,4.2449,211.92,211.87,3.95618199]
[1758757155645,4.2449,211.92,211.88,35.28]
[1758757155849,4.2449,211.92,211.87,100.85618199]
[1758757156044,4.2449,211.92,211.88,7.87]
[1758757156253,4.2449,211.92,211.87,100.85618199]
[1758757156853,4.2449,211.92,211.88,7.87]
[1758757157052,4.2449,211.92,211.87,3.95618199]
[1758757157455,4.2449,211.92,211.87,69.97618199]
[1758757157651,7.31,211.92,211.86,3.95618199]
[1758757157954,2.6943093,211.93,211.84,51.88618199]
[1758757158250,7.31,211.92,211.84,51.88618199]
[1758757158558,11.556,211.87,211.84,7.87]
[1758757158851,7.31,211.83,211.81,14.22025989]
[1758757159056,10.65924978,211.82,211.81,14.22025989]
[1758757159856,10.65924978,211.82,211.76,50.59]
[1758757160059,4.2474,211.8,211.76,42.72]
[1758757160258,3.34924978,211.79,211.77,7.87]
[1758757160550,4.2474,211.8,211.77,7.87]
[1758757160758,3.34289139,211.79,211.77,7.87]
[1758757161056,7.31,211.79,211.76,50.59]
[1758757161254,11.5576,211.79,211.76,7.87]
[1758757161454,3.34016874,211.78,211.72,31.84]
[1758757161751,7.31,211.79,211.72,31.84]
[1758757161958,3.34018599,211.78,211.72,31.84]
[1758757162255,7.31,211.79,211.72,31.84]
[1758757163053,3.35652518,211.78,211.72,31.84]
[1758757163250,4.248,211.77,211.72,31.84]
[1758757163453,11.558,211.77,211.73,7.87]
[1758757163653,11.558,211.77,211.72,31.84]
[1758757163849,11.558,211.77,211.73,7.51]
[1758757164155,7.31,211.77,211.73,7.51]
[1758757164656,11.558,211.77,211.73,7.51]
[1758757164851,7.88,211.76,211.73,7.51]
[1758757166556,12.1273,211.8,211.73,7.51]
[1758757166753,7.88,211.8,211.73,7.51]
[1758757167555,4.2478,211.78,211.72,31.84]
[1758757167953,4.2478,211.78,211.73,7.51]
[1758757168158,4.2478,211.78,211.72,31.84]
[1758757168855,12.1278,211.78,211.72,31.84]
[1758757169049,12.1278,211.78,211.72,39.35]
[1758757169248,7.88,211.76,211.68,87.65]
[1758757169551,2.6943093,211.78,211.68,7.51]
[1758757169552,3.34616618,211.75,211.68,7.51]
[1758757169751,4.2488,211.73,211.68,7.51]
[1758757169958,7.88,211.72,211.68,7.51]
[1758757170361,2.6943093,211.75,211.68,7.51]
[1758757170560,2.6943093,211.75,211.65,343.48]
[1758757171060,4.2494,211.7,211.65,343.48]
[1758757171359,12.1294,211.7,211.65,350.99]
[1758757171554,12.1294,211.7,211.66,7.51]
[1758757172063,2.6943093,211.75,211.66,7.51]
[1758757172064,7.88,211.69,211.66,7.51]
[1758757172264,4.2489,211.72,211.66,7.51]
[1758757173564,4.2492,211.71,211.66,7.51]
[1758757173753,7.88,211.7,211.66,7.51]
[1758757174160,4.2495,211.69,211.66,7.51]
[1758757174560,4.2498,211.67,211.62,7.51]
[1758757174762,4.2498,211.67,211.59,7.51]
[1758757174963,4.2498,211.67,211.61,42.49]
[1758757177557,7.88,211.68,211.61,42.49]
[1758757177857,10.5743093,211.75,211.62,7.51]
[1758757178052,4.2492,211.71,211.62,7.51]
[1758757178252,7.88,211.71,211.62,7.51]
[1758757179064,7.88,211.68,211.62,7.51]
[1758757179460,2.6943093,211.69,211.62,7.51]
[1758757179461,4.25,211.67,211.62,7.51]
[1758757179666,12.13,211.67,211.61,42.49]
[1758757181268,4.2502,211.66,211.61,42.49]
[1758757181561,12.1302,211.66,211.62,7.51]
[1758757181765,4.2504,211.65,211.62,7.51]
[1758757181964,7.88,211.69,211.62,7.51]
[1758757182266,4.25,211.67,211.62,7.51]
[1758757182462,68.7886093,211.72,211.58,14.07274079]
[1758757182463,66.1032,211.69,211.58,14.07274079]
[1758757182770,9.60920881,211.65,211.56,7.51]
[1758757183166,4.2508,211.63,211.56,7.51]
[1758757184562,1.72920881,211.71,211.62,7.51]
[1758757184966,1.72920881,211.71,211.63,7.51]
[1758757186160,1.72920881,211.7,211.63,7.51]
[1758757186970,4.25,211.67,211.63,7.51]
[1758757187269,4.25,211.67,211.61,1.72920881]
[1758757188168,4.25,211.67,211.61,9.23920881]
[1758757189467,4.25,211.67,211.6,4.2512]
[1758757189468,4.2502,211.66,211.62,7.51]
[1758757189665,7.88,211.65,211.62,7.51]
[1758757191170,7.88,211.65,211.59,49.78]
[1758757191171,4.2499,211.67,211.6,7.51]
[1758757194170,7.66,211.66,211.6,7.51]
[1758757194371,9.38920881,211.66,211.6,7.51]
[1758757195276,4.2504,211.65,211.59,54.0313]
[1758757195470,4.2504,211.65,211.59,61.4813]
[1758757196570,4.2504,211.65,211.59,11.7013]
[1758757197277,4.2504,211.65,211.59,7.45]
[1758757197571,4.2505,211.64,211.58,115.52]
[1758757197775,4.2505,211.64,211.58,7.45]
[1758757198973,4.2508,211.63,211.57,4.2518]
[1758757199179,4.2508,211.63,211.57,127.2218]
[1758757199374,1.72920881,211.63,211.57,127.2218]
[1758757200179,4.251,211.62,211.58,7.45]
[1758757200579,4.251,211.62,211.57,115.52]
[1758757200777,4.251,211.62,211.58,7.54]
[1758757200977,4.251,211.62,211.57,115.52]
[1758757201684,4.251,211.62,211.58,7.54]
[1758757201877,4.251,211.62,211.57,115.52]
[1758757202484,4.251,211.62,211.58,7.54]
[1758757202687,1.72920881,211.63,211.58,7.54]
[1758757202879,1.72920881,211.63,211.57,115.52]
[1758757203081,9.60920881,211.63,211.57,7.54]
[1758757203383,9.60920881,211.63,211.59,7.54]
[1758757204292,7.60377348,211.62,211.59,7.54]
[1758757204587,4.251,211.62,211.59,7.54]
[1758757204982,4.251,211.62,211.54,1.72920881]
[1758757204983,1.72920881,211.63,211.54,14.3517884]
[1758757205292,1.72920881,211.59,211.55,7.54]
[1758757205482,5.98080881,211.59,211.55,7.54]
[1758757205682,11.23426721,211.58,211.53,351.26]
[1758757205882,3.35426721,211.57,211.54,7.54]
[1758757206278,7.88,211.58,211.54,7.54]
[1758757206484,11.2348099,211.57,211.54,7.54]
[1758757206678,1.72920881,211.59,211.52,115.52]
[1758757206883,3.35480894,211.58,211.52,115.52]
[1758757207093,3.35480894,211.57,211.49,14.12835651]